fUSD/lending_fUSD_20240318
["ID","MTS","AMOUNT","RATE_DAILY","PERIOD"]
[319425923,1710733081427,-200.0,0.00013887,2]
[319425924,1710733081437,-200.0,0.00013888,2]
[319425925,1710733081446,-800.0,0.00013888,2]
[319425926,1710733081455,-200.0,0.00013888,2]
[319425927,1710733081465,-200.0,0.00013888,2]
[319425928,1710733081474,-200.0,0.00013888,2]
[319425929,1710733081484,-200.0,0.00013888,2]
[319425930,1710733081493,-200.0,0.00013888,2]
[319425931,1710733081502,-200.0,0.00013888,2]
[319425932,1710733081512,-200.0,0.00013888,2]
[319425933,1710733081521,-800.0,0.00013888,2]
[319425934,1710733081530,-800.0,0.00013888,2]
[319425935,1710733081539,-800.0,0.00013888,2]
[319425936,1710733081548,-200.0,0.00013888,2]
[319425937,1710733081557,-200.0,0.00013888,2]
[319425938,1710733081566,-200.0,0.00013888,2]
[319425939,1710733081575,-200.0,0.00013888,2]
[319425940,1710733081584,-200.0,0.00013888,2]
[319425941,1710733081594,-200.0,0.00013888,2]
[319425942,1710733081603,-200.0,0.00013888,2]
[319425943,1710733081613,-200.0,0.00013888,2]
[319425944,1710733081622,-200.0,0.00013888,2]
[319425945,1710733081631,-200.0,0.00013888,2]
[319425946,1710733081639,-107614.863,0.00013889,2]
[319425947,1710733081655,-2541.4603,0.00013889,2]
[319425948,1710733081668,-510.0,0.00013889,2]
[319425949,1710733081679,-250.85014333,0.00013889,2]
[319425950,1710733081702,-164.78761619,0.00013889,2]
[319425951,1710733081714,-7145.76871108,0.00013889,2]
[319425952,1710733081724,-151.19077172,0.000139,2]
[319425953,1710733081736,-164.37202328,0.000139,2]
[319425954,1710733081745,-702.21935411,0.000139,2]
[319425955,1710733081754,-270.47939098,0.000139,2]
[319425956,1710733081763,-160.37001779,0.0001391,2]
[319425957,1710733081772,-371.950142,0.00013973,2]
[319425958,1710733081781,-82890.31158904,0.0001399,2]
[319425959,1710733082162,-42058.23067036,0.0001399,2]
[319425960,1710733082171,-9358.5979722,0.0001399,2]
[319425961,1710733082181,-3733.8621385,0.0001399,2]
[319425962,1710733082190,-426.08298862,0.00013991,2]
[319425963,1710733082199,-500.0,0.00013999,2]
[319425964,1710733082209,-35779.88823032,0.00014,2]
[319425965,1710733082220,-91856.663,0.00014,2]
[319425966,1710733082236,-29603.44498432,0.00014,2]
[319425967,1710733129762,-1146.97908432,0.0001366,2]
[319425968,1710733129794,-202.74751577,0.00013759,2]
[319425969,1710733129820,-100000.0,0.0001376,2]
[319425970,1710733129848,-164.78761619,0.00013859,2]
[319425971,1710733129875,-355.81663798,0.000139,2]
[319425972,1710733129901,-6831.03280153,0.000139,2]
[319425973,1710733129929,-481.11005338,0.0001391,2]
[319425974,1710733129956,-2108.26614603,0.00013999,2]
[319425975,1710733129985,-1147015.48132066,0.00014,2]
[319425976,1710733130002,-1146.97908432,0.00014,2]
[319425977,1710733130017,-202.74751577,0.00014,2]
[319425978,1710733130033,-100000.0,0.00014,2]
[319425979,1710733130044,-164.78761619,0.00014,2]
[319425980,1710733130055,-355.81663798,0.00014,2]
[319425981,1710733130067,-6831.03280153,0.00014,2]
[319425982,1710733130086,-481.11005338,0.00014,2]
[319425983,1710733130097,-2108.26614603,0.00014,2]
[319425984,1710733130108,-1992403.03896894,0.00014,2]
[319425988,1710733257626,484.46,0.00011007,2]
[319425997,1710733831947,-202.74751577,0.00012591,2]
[319425998,1710733831957,-1326.76614603,0.00012592,2]
[319425999,1710733832076,-267.6660794,0.00012593,2]
[319426000,1710733832087,-392.92341631,0.00012595,2]
[319426023,1710733832503,-653.43369802,0.00012595,2]
[319426029,1710733832530,-298.08288567,0.00012595,2]
[319426032,1710733832540,-250.0,0.00012806,2]
[319426034,1710733832550,-13.42844134,0.0001282,2]
[319426038,1710733832579,-826.57155866,0.0001282,2]
[319426040,1710733832588,-6.78845966,0.00012918,2]
[319426043,1710733832601,-143.78154034,0.00012918,2]
[319426046,1710733832610,-192.0,0.00012958,2]
[319426049,1710733832619,-150.57,0.00012993,2]
[319426052,1710733832628,-50.7686215,0.00013068,2]
[319426186,1710733837979,-99.8013785,0.00013068,2]
[319426189,1710733837995,-150.57,0.00013143,2]
[319426191,1710733838013,-150.57,0.00013217,2]
[319426193,1710733838028,-167.65421443,0.00013271,2]
[319426194,1710733838059,-316.80578557,0.00013271,2]
[319426195,1710733838073,-150.57,0.00013292,2]
[319426196,1710733838089,-150.0,0.00013315,2]
[319426197,1710733838103,-150.99,0.00013333,2]
[319426198,1710733838117,-150.57,0.00013367,2]
[319426199,1710733838131,-414.96,0.00013378,2]
[319426200,1710733838145,-233.49,0.00013378,2]
[319426201,1710733838159,-150.57,0.00013442,2]
[319426202,1710733838173,-414.96,0.00013478,2]
[319426203,1710733838186,-150.0,0.00013478,2]
[319426204,1710733838201,-150.57,0.00013516,2]
[319426205,1710733838215,-516.76,0.00013578,2]
[319426206,1710733838230,-414.96,0.00013578,2]
[319426207,1710733838244,-150.0,0.00013578,2]
[319426208,1710733838258,-159.3,0.00013591,2]
[319426209,1710733838272,-150.57,0.00013591,2]
[319426210,1710733838286,-414.96,0.000136,2]
[319426211,1710733838301,-150.0,0.000136,2]
[319426212,1710733838315,-516.76,0.000136,2]
[319426213,1710733838330,-159.3,0.00013697,2]
[319426215,1710733838345,-272.21,0.00013699,2]
[319426217,1710733838359,-250.0,0.00013699,2]
[319426220,1710733838374,-5365.97662372,0.00013758,2]
[319426222,1710733838388,-235.60275013,0.00013758,2]
[319426225,1710733838404,-12600.11567344,0.00013759,2]
[319426228,1710733838418,-1055.56877121,0.00013759,2]
[319426230,1710733838433,-1000.0,0.0001376,2]
[319426233,1710733838448,-158.6978,0.0001376,2]
[319426235,1710733838462,-210.0714,0.0001376,2]
[319426238,1710733838477,-414.96,0.00013778,2]
[319426241,1710733838491,-150.0,0.00013778,2]
[319426243,1710733838506,-516.76,0.00013778,2]
[319426246,1710733838520,-469.4552,0.00013799,2]
[319426248,1710733838533,-2500.0,0.00013799,2]
[319426251,1710733838549,-2500.0,0.00013799,2]
[319426253,1710733838563,-2500.0,0.00013799,2]
[319426256,1710733838578,-160.69850573,0.000138,2]
[319426259,1710733838592,-1003.60669878,0.000138,2]
[319426261,1710733838607,-444.41493382,0.000138,2]
[319426264,1710733838622,-159.3,0.00013803,2]
[319426266,1710733838636,-164.78761619,0.00013859,2]
[319426269,1710733838651,-15094.879238,0.00013888,2]
[319426270,1710733838665,-192.79513505,0.00013889,2]
[319426271,1710733838679,-118092.95720864,0.00013889,2]
[319426272,1710733838840,-6147.92952135,0.00013889,2]
[319426273,1710733838856,-1462425.88161084,0.00013899,2]
[319426274,1710733838865,-10000.0,0.000139,2]
[319426275,1710733838874,-10218.7854,0.000139,2]
[319426276,1710733838883,-623.92359266,0.000139,2]
[319426277,1710733838892,-225514.25554485,0.000139,2]
[319426278,1710733838917,-2475.66949071,0.000139,2]
[319426279,1710733838928,-362.26956143,0.000139,2]
[319426280,1710733838943,-328.92787868,0.000139,2]
[319426281,1710733838958,-3499.8,0.000139,2]
[319426282,1710733838985,-12819.07752433,0.000139,2]
[319426283,1710733838994,-96900.7304,0.000139,2]
[319426284,1710733839005,-12531.4464,0.000139,2]
[319426285,1710733839016,-237.21109198,0.000139,2]
[319426286,1710733839025,-180.31959398,0.000139,2]
[319426287,1710733839034,-159.3,0.00013908,2]
[319426288,1710733839046,-8197.362538,0.0001399,2]
[319426289,1710733839055,-7217.2492022,0.0001399,2]
[319426290,1710733839064,-2879.5139636,0.0001399,2]
[319426291,1710733839074,-192.79513505,0.0001399,2]
[319426292,1710733839084,-174955.4734358,0.0001399,2]
[319426293,1710733839093,-5754.50106799,0.00013998,2]
[319426294,1710733839102,-1080.98183508,0.00013998,2]
[319426295,1710733839111,-404.10984269,0.00013998,2]
[319426296,1710733839120,-360.18194974,0.00013999,5]
[319426297,1710733839129,-456.0416,0.00013999,2]
[319426298,1710733839139,-1172845.50555755,0.00014,2]
[319426299,1710733839150,-397.86579353,0.00014,2]
[319426314,1710733839962,-361.17462948,0.00014,2]
[319426371,1710733840693,-2507107.07673416,0.00014,2]
[319426378,1710733843141,-499.99,0.00013442,2]
[319426379,1710733843150,-164.78761619,0.00013859,2]
[319426380,1710733843158,-697.72238381,0.00014,2]
[319426381,1710733843178,-1968.513882,0.00014,2]
[319426398,1710733846049,-267.67057778,0.00013999,2]
[319426399,1710733846058,-3380.85270601,0.00014,2]
[319426400,1710733846113,-1796.55589749,0.00014,2]
[319426401,1710733846219,-966.52,0.00014,2]
[319426403,1710733860335,446.89,0.00011915,2]
[319426404,1710733881407,326.97406215,9e-05,2]
[319426405,1710733994217,205.0,9.8e-05,2]
[319426407,1710734283994,445.2,0.00010861,2]
[319426408,1710734735963,434.52,0.00010851,2]
[319426409,1710734752653,458.10967083,0.00023,120]
[319426410,1710734772692,-97000.0,0.000154,5]
[319426416,1710735032159,-1326.76614603,0.00012652,2]
[319426417,1710735032169,-202.74751577,0.00012653,2]
[319426418,1710735032178,-53.79802536,0.00012654,2]
[319426419,1710735032573,-365.35210606,0.00012654,2]
[319426440,1710735038212,-396.99986857,0.00012654,2]
[319426442,1710735038222,-887.59597863,0.00012662,2]
[319426450,1710735038282,-1167.28286269,0.00012662,2]
[319426452,1710735038291,-192.0,0.00012691,2]
[319426454,1710735038300,-153.6,0.00012745,2]
[319426456,1710735038310,-250.0,0.00012745,2]
[319426458,1710735038319,-328.0,0.00012759,2]
[319426460,1710735038328,-672.0,0.00012772,2]
[319426462,1710735038337,-1136.79,0.00012775,2]
[319426464,1710735038348,-408.0,0.00012806,2]
[319426466,1710735038359,-220.28735627,0.0001305,2]
[319426468,1710735038368,-434.52,0.00013115,2]
[319426470,1710735038377,-2841.0,0.00013425,2]
[319426472,1710735038387,-156.0,0.00013425,2]
[319426474,1710735038397,-164.0,0.00013425,2]
[319426476,1710735038408,-2841.0,0.00013452,2]
[319426478,1710735038417,-156.0,0.00013452,2]
[319426480,1710735038429,-164.0,0.00013452,2]
[319426481,1710735038438,-2841.0,0.0001348,2]
[319426482,1710735038447,-156.0,0.0001348,2]
[319426483,1710735038457,-164.0,0.0001348,2]
[319426484,1710735038466,-307.29,0.000135,2]
[319426485,1710735038476,-2841.0,0.00013507,2]
[319426486,1710735038486,-164.0,0.00013507,2]
[319426487,1710735038495,-499.99,0.00013507,2]
[319426488,1710735038505,-2841.0,0.00013535,2]
[319426489,1710735038515,-165.0,0.00013535,2]
[319426490,1710735038525,-2841.0,0.00013562,2]
[319426491,1710735038535,-1765.0,0.00013589,2]
[319426492,1710735038545,-1765.0,0.00013617,2]
[319426493,1710735038555,-1765.0,0.00013644,2]
[319426494,1710735038565,-1765.0,0.00013672,2]
[319426495,1710735038574,-270.03,0.00013699,2]
[319426496,1710735038584,-250.0,0.00013699,2]
[319426497,1710735038594,-1765.0,0.00013699,2]
[319426498,1710735038603,-1000.0,0.000137,2]
[319426499,1710735038613,-1006.0,0.000137,2]
[319426500,1710735038623,-1500.0,0.000137,2]
[319426501,1710735038633,-1765.0,0.00013726,2]
[319426502,1710735038642,-150.0,0.00013728,2]
[319426503,1710735038652,-150.0,0.00013729,2]
[319426504,1710735038661,-1500.0,0.0001373,2]
[319426505,1710735038672,-150.0,0.0001373,2]
[319426506,1710735038682,-150.0,0.00013733,2]
[319426507,1710735038693,-150.0,0.00013736,2]
[319426508,1710735038703,-150.0,0.00013736,2]
[319426509,1710735038713,-150.0,0.00013737,2]
[319426510,1710735038724,-150.0,0.00013737,2]
[319426511,1710735038733,-150.0,0.00013738,2]
[319426512,1710735038744,-1500.0,0.0001374,2]
[319426513,1710735038753,-150.0,0.00013745,2]
[319426514,1710735038763,-1500.0,0.00013747,2]
[319426515,1710735038773,-1500.0,0.00013748,2]
[319426516,1710735038787,-150.0,0.0001375,2]
[319426517,1710735038797,-150.0,0.00013751,2]
[319426518,1710735038808,-150.0,0.00013752,2]
[319426519,1710735038818,-1765.0,0.00013754,2]
[319426520,1710735038828,-150.0,0.00013754,2]
[319426521,1710735038837,-1500.0,0.00013756,2]
[319426522,1710735038846,-150.0,0.00013756,2]
[319426523,1710735038855,-300.0,0.00013758,2]
[319426524,1710735038865,-300.0,0.0001376,2]
[319426525,1710735038876,-1500.0,0.00013761,2]
[319426526,1710735038886,-150.0,0.00013763,2]
[319426527,1710735038895,-150.0,0.00013764,2]
[319426528,1710735038905,-150.0,0.00013765,2]
[319426529,1710735038915,-150.0,0.00013765,2]
[319426530,1710735038925,-1500.0,0.00013769,2]
[319426531,1710735038935,-150.0,0.00013776,2]
[319426532,1710735038945,-300.0,0.00013776,2]
[319426533,1710735038955,-300.0,0.00013779,2]
[319426534,1710735038965,-1765.0,0.00013781,2]
[319426535,1710735038975,-150.0,0.00013785,2]
[319426536,1710735039098,-1500.0,0.00013786,2]
[319426537,1710735039108,-1500.0,0.00013786,2]
[319426538,1710735039117,-1500.0,0.00013787,2]
[319426539,1710735039126,-150.0,0.00013788,2]
[319426540,1710735039136,-150.0,0.00013789,2]
[319426541,1710735039146,-1500.0,0.0001379,2]
[319426542,1710735039155,-150.0,0.0001379,2]
[319426543,1710735039165,-150.0,0.00013791,2]
[319426544,1710735039174,-878.15586145,0.00013792,2]
[319426545,1710735039184,-1500.0,0.00013793,2]
[319426546,1710735039193,-150.0,0.00013797,2]
[319426547,1710735039203,-150.0,0.00013797,2]
[319426548,1710735039212,-150.0,0.00013797,2]
[319426549,1710735039222,-300.0,0.00013801,2]
[319426550,1710735039231,-150.0,0.00013802,2]
[319426551,1710735039241,-150.0,0.00013806,2]
[319426552,1710735039250,-878.15586141,0.00013807,2]
[319426553,1710735039260,-300.0,0.00013808,2]
[319426554,1710735039269,-1765.0,0.00013809,2]
[319426555,1710735039283,-150.0,0.00013811,2]
[319426556,1710735039293,-1500.0,0.00013812,2]
[319426557,1710735039303,-212.88011753,0.00013813,2]
[319426558,1710735039312,-1500.0,0.00013813,2]
[319426559,1710735039322,-150.0,0.00013813,2]
[319426560,1710735039333,-300.0,0.00013814,2]
[319426561,1710735039342,-300.0,0.00013815,2]
[319426562,1710735039356,-1500.0,0.00013816,2]
[319426563,1710735039365,-150.0,0.00013818,2]
[319426564,1710735039375,-290.71118852,0.00013818,2]
[319426565,1710735039385,-150.0,0.00013821,2]
[319426566,1710735039395,-150.0,0.00013821,2]
[319426567,1710735039404,-150.0,0.00013821,2]
[319426568,1710735039414,-878.15586141,0.00013823,2]
[319426569,1710735039424,-150.0,0.00013824,2]
[319426570,1710735039433,-150.0,0.00013824,2]
[319426571,1710735039442,-1500.0,0.00013825,2]
[319426572,1710735039452,-150.0,0.00013829,2]
[319426573,1710735039461,-150.0,0.00013831,2]
[319426574,1710735039470,-1500.0,0.00013832,2]
[319426575,1710735039478,-150.0,0.00013835,2]
[319426576,1710735039487,-1765.0,0.00013836,2]
[319426577,1710735039497,-300.0,0.00013838,2]
[319426578,1710735039505,-878.15586141,0.00013838,2]
[319426579,1710735039514,-150.0,0.0001384,2]
[319426580,1710735039527,-1500.0,0.0001384,2]
[319426581,1710735039536,-150.0,0.00013842,2]
[319426582,1710735039545,-150.0,0.00013844,2]
[319426583,1710735039554,-1500.0,0.00013846,2]
[319426584,1710735039565,-150.0,0.00013847,2]
[319426585,1710735039574,-150.0,0.00013847,2]
[319426586,1710735039584,-150.0,0.00013847,2]
[319426587,1710735039594,-150.0,0.00013847,2]
[319426588,1710735039603,-150.0,0.0001385,2]
[319426589,1710735039613,-150.0,0.00013851,2]
[319426590,1710735039623,-878.15586141,0.00013854,2]
[319426591,1710735039633,-150.0,0.00013855,2]
[319426592,1710735039642,-150.0,0.00013858,2]
[319426593,1710735039652,-300.0,0.00013858,2]
[319426594,1710735039662,-164.78761619,0.00013859,2]
[319426595,1710735039672,-760.714,0.0001386,2]
[319426596,1710735039682,-760.714,0.0001386,2]
[319426597,1710735039693,-760.714,0.0001386,2]
[319426598,1710735039703,-760.715,0.0001386,2]
[319426599,1710735039713,-760.714,0.0001386,2]
[319426600,1710735039723,-3000.0,0.0001386,2]
[319426601,1710735039734,-150.0,0.00013861,2]
[319426602,1710735039744,-301.49083833,0.00013861,2]
[319426603,1710735039754,-1765.0,0.00013863,2]
[319426604,1710735039764,-150.0,0.00013863,2]
[319426605,1710735039776,-150.0,0.00013864,2]
[319426606,1710735039785,-150.0,0.00013869,2]
[319426607,1710735039795,-878.15586141,0.00013869,2]
[319426608,1710735039804,-150.0,0.0001387,2]
[319426609,1710735039814,-150.0,0.00013872,2]
[319426610,1710735039824,-1500.0,0.00013876,2]
[319426611,1710735039833,-1500.0,0.00013878,2]
[319426612,1710735039842,-1500.0,0.00013878,2]
[319426613,1710735039852,-150.0,0.00013878,2]
[319426614,1710735039861,-150.0,0.00013879,2]
[319426615,1710735039871,-150.0,0.0001388,2]
[319426616,1710735039881,-150.0,0.00013881,2]
[319426617,1710735039891,-150.0,0.00013881,2]
[319426618,1710735039902,-150.0,0.00013882,2]
[319426620,1710735039912,-150.0,0.00013883,2]
[319426621,1710735039923,-878.15586141,0.00013885,2]
[319426622,1710735039934,-150.0,0.00013886,2]
[319426623,1710735039946,-150.0,0.00013886,2]
[319426624,1710735039957,-200.0,0.00013887,2]
[319426625,1710735039967,-800.0,0.00013887,2]
[319426626,1710735039978,-200.0,0.00013887,2]
[319426627,1710735039989,-200.0,0.00013887,2]
[319426628,1710735039999,-500.0,0.00013887,2]
[319426629,1710735040009,-200.0,0.00013887,2]
[319426630,1710735040019,-150.0,0.00013887,2]
[319426631,1710735040033,-200.0,0.00013887,2]
[319426632,1710735040044,-800.0,0.00013887,2]
[319426633,1710735040054,-200.0,0.00013887,2]
[319426634,1710735040064,-500.0,0.00013887,2]
[319426636,1710735040075,-200.0,0.00013888,2]
[319426637,1710735040085,-200.0,0.00013888,2]
[319426638,1710735040096,-200.0,0.00013888,2]
[319426639,1710735040106,-800.0,0.00013888,2]
[319426640,1710735040116,-200.0,0.00013888,2]
[319426641,1710735040125,-500.0,0.00013888,2]
[319426642,1710735040135,-200.0,0.00013888,2]
[319426643,1710735040145,-200.0,0.00013888,2]
[319426644,1710735040154,-200.0,0.00013888,2]
[319426645,1710735040163,-200.0,0.00013888,2]
[319426646,1710735040172,-800.0,0.00013888,2]
[319426647,1710735040181,-800.0,0.00013888,2]
[319426648,1710735040190,-800.0,0.00013888,2]
[319426649,1710735040200,-200.0,0.00013888,2]
[319426650,1710735040209,-200.0,0.00013888,2]
[319426651,1710735040218,-200.0,0.00013888,2]
[319426652,1710735040228,-200.0,0.00013888,2]
[319426653,1710735040238,-200.0,0.00013888,2]
[319426654,1710735040248,-200.0,0.00013888,2]
[319426655,1710735040258,-200.0,0.00013888,2]
[319426656,1710735040268,-200.0,0.00013888,2]
[319426657,1710735040280,-500.0,0.00013888,2]
[319426658,1710735040290,-500.0,0.00013888,2]
[319426659,1710735040299,-500.0,0.00013888,2]
[319426660,1710735040308,-200.0,0.00013888,2]
[319426661,1710735040318,-200.0,0.00013888,2]
[319426662,1710735040327,-200.0,0.00013888,2]
[319426663,1710735040341,-150.0,0.00013888,2]
[319426664,1710735040351,-150.0,0.00013888,2]
[319426665,1710735040360,-150.0,0.00013889,2]
[319426666,1710735040369,-5533.13656917,0.00013889,2]
[319426667,1710735040380,-5533.13656917,0.00013889,2]
[319426668,1710735040390,-5533.13656917,0.00013889,2]
[319426669,1710735040399,-5533.13656917,0.00013889,2]
[319426670,1710735040410,-5533.13656917,0.00013889,2]
[319426671,1710735040419,-5533.13656917,0.00013889,2]
[319426672,1710735040429,-5533.13656917,0.00013889,2]
[319426673,1710735040439,-5533.13656917,0.00013889,2]
[319426674,1710735040450,-5533.13656917,0.00013889,2]
[319426675,1710735040459,-1765.0,0.00013891,2]
[319426676,1710735040469,-150.0,0.00013892,2]
[319426677,1710735040478,-150.0,0.00013894,2]
[319426678,1710735040487,-150.0,0.00013894,2]
[319426679,1710735040497,-150.0,0.00013896,2]
[319426680,1710735040506,-150.0,0.00013896,2]
[319426681,1710735040515,-150.0,0.00013898,2]
[319426682,1710735040526,-3830.4384,0.000139,2]
[319426683,1710735040535,-164.37202328,0.000139,2]
[319426684,1710735040545,-6863.15951904,0.000139,2]
[319426685,1710735040554,-311.88927745,0.000139,2]
[319426686,1710735040565,-300.0,0.000139,2]
[319426687,1710735040574,-878.15586141,0.000139,2]
[319426688,1710735040583,-5533.13656917,0.000139,2]
[319426689,1710735040592,-474.42218394,0.000139,2]
[319426690,1710735040602,-2545.06331126,0.000139,2]
[319426691,1710735040705,-150.0,0.00013908,2]
[319426692,1710735040715,-150.0,0.00013909,2]
[319426693,1710735040724,-150.0,0.0001391,2]
[319426694,1710735040734,-160.37001779,0.0001391,2]
[319426695,1710735040743,-150.0,0.00013912,2]
[319426696,1710735040752,-150.0,0.00013914,2]
[319426697,1710735040761,-150.0,0.00013917,2]
[319426698,1710735040770,-1765.0,0.00013918,2]
[319426699,1710735040781,-150.0,0.0001392,2]
[319426700,1710735040790,-150.0,0.00013921,2]
[319426701,1710735040800,-150.0,0.00013927,2]
[319426702,1710735040810,-150.0,0.00013927,2]
[319426703,1710735040819,-150.0,0.00013929,2]
[319426704,1710735040830,-150.0,0.00013929,2]
[319426705,1710735040839,-300.48256756,0.0001393,2]
[319426706,1710735040849,-150.0,0.0001393,2]
[319426707,1710735040859,-150.0,0.00013931,2]
[319426708,1710735040868,-150.0,0.00013931,2]
[319426709,1710735040878,-150.0,0.00013931,2]
[319426710,1710735040888,-150.0,0.00013934,2]
[319426711,1710735040897,-1500.0,0.00013937,2]
[319426712,1710735040907,-1500.0,0.00013937,2]
[319426713,1710735040917,-150.0,0.00013939,2]
[319426714,1710735040927,-150.0,0.00013939,2]
[319426715,1710735040936,-150.0,0.00013941,2]
[319426716,1710735040946,-1765.0,0.00013946,2]
[319426717,1710735040955,-1500.0,0.00013946,2]
[319426718,1710735040964,-150.0,0.00013946,2]
[319426719,1710735040974,-150.0,0.00013949,2]
[319426720,1710735040983,-150.0,0.0001395,2]
[319426721,1710735040992,-1500.0,0.00013951,2]
[319426722,1710735041002,-1500.0,0.00013951,2]
[319426723,1710735041012,-1500.0,0.00013955,2]
[319426724,1710735041021,-150.0,0.00013956,2]
[319426725,1710735041032,-1500.0,0.00013959,2]
[319426726,1710735041042,-150.0,0.00013959,2]
[319426727,1710735041052,-150.0,0.00013963,2]
[319426728,1710735041061,-1500.0,0.00013965,2]
[319426729,1710735041071,-150.0,0.00013965,2]
[319426730,1710735041080,-150.0,0.00013966,2]
[319426731,1710735041089,-1500.0,0.00013966,2]
[319426732,1710735041099,-150.0,0.00013966,2]
[319426733,1710735041108,-150.0,0.00013967,2]
[319426734,1710735041117,-150.0,0.00013967,2]
[319426735,1710735041126,-1770.0,0.00013973,2]
[319426736,1710735041136,-1500.0,0.00013973,2]
[319426737,1710735041145,-300.0,0.00013974,2]
[319426738,1710735041154,-151.46003274,0.00013975,2]
[319426739,1710735041163,-150.0,0.00013976,2]
[319426740,1710735041173,-150.0,0.00013978,2]
[319426741,1710735041182,-150.0,0.00013978,2]
[319426742,1710735041191,-1500.0,0.0001398,2]
[319426743,1710735041200,-150.0,0.0001398,2]
[319426744,1710735041210,-1500.0,0.00013983,2]
[319426745,1710735041220,-150.0,0.00013983,2]
[319426746,1710735041229,-150.0,0.00013983,2]
[319426747,1710735041239,-1500.0,0.00013985,2]
[319426748,1710735041248,-150.0,0.00013987,2]
[319426749,1710735041257,-1500.0,0.00013988,2]
[319426750,1710735041267,-150.0,0.00013988,2]
[319426751,1710735041276,-426.08298862,0.00013991,2]
[319426752,1710735041285,-1500.0,0.00013994,2]
[319426753,1710735041294,-150.0,0.00013995,2]
[319426754,1710735041303,-2165.24047934,0.00013998,2]
[319426755,1710735041313,-949.63482172,0.00013999,2]
[319426756,1710735041322,-150.0,0.00013999,2]
[319426757,1710735041331,-150.0,0.00013999,2]
[319426758,1710735041341,-537.02571856,0.00013999,3]
[319426759,1710735041352,-337.71894161,0.00014,3]
[319426760,1710735041362,-425169.43443668,0.00014,2]
[319426761,1710735041371,-846.19485352,0.00014,2]
[319426762,1710735041380,-406.15792888,0.00014,2]
[319426763,1710735041389,-30850832.59463006,0.00014,2]
[319426764,1710735041925,-1155.56387732,0.00014,2]
[319426765,1710735041936,-325.87134922,0.00014,2]
[319426766,1710735041948,-4029.9929993,0.00014,2]
[319426767,1710735041964,-6584.90514771,0.00014,2]
[319426768,1710735042459,-608.6,0.00014,2]
[319426769,1710735042480,-1060.86500547,0.00014,2]
[319426770,1710735042499,-1516.92952311,0.00014,2]
[319426771,1710735042518,-3216.58463516,0.00014,2]
[319426772,1710735042548,-5223.50392506,0.00014,2]
[319426773,1710735042589,-9439663.36978387,0.00014,2]
[319426774,1710735042605,-1029.50869994,0.00014,2]
[319426775,1710735042620,-70118.04925747,0.00014,2]
[319426776,1710735042635,-320.12480357,0.00014,2]
[319426777,1710735042650,-49814.0,0.00014,2]
[319426778,1710735042666,-159.3,0.00014014,2]
[319426779,1710735042681,-159.3,0.0001412,2]
[319426780,1710735042696,-2500.0,0.00014128,2]
[319426781,1710735042712,-159.3,0.00014225,2]
[319426782,1710735042728,-163.0,0.00014314,2]
[319426783,1710735042743,-159.3,0.00014331,2]
[319426784,1710735042759,-153.6,0.00014338,2]
[319426785,1710735042775,-328.0,0.00014353,2]
[319426786,1710735042791,-672.0,0.00014368,2]
[319426787,1710735042807,-408.0,0.00014407,2]
[319426788,1710735042821,-159.3,0.00014437,2]
[319426789,1710735042836,-1507.36222224,0.00014464,2]
[319426790,1710735042851,-1340.5231676,0.00014468,2]